[Event "November 21 Early 2023"]
[Site "https://www.chess.com"]
[Date "2023.11.21"]
[Round "11"]
[White "Minko, Dmitry"]
[Black "reevecanada"]
[Result "0-1"]
[Board "92"]
[TimeControl "180+1"]
[WhiteFideId "24188468"]
[WhiteElo "1992"]
[BlackElo "2666"]
[WhiteTeam "FID"]
[WhiteClock "0:02:20"]
[BlackClock "0:02:32"]

1. e4 {[%clk 0:03:00]}  c5 {[%clk 0:02:52]} 2. Nf3 {[%clk 0:03:01]}  d6 {[%clk 0:02:51]} 3. d4 {[%clk 0:03:01]}  cxd4 {[%clk 0:02:51]} 4. Nxd4 {[%clk 0:03:02]}  Nf6 {[%clk 0:02:51]} 5. Nc3 {[%clk 0:03:03]}  a6 {[%clk 0:02:51]} 6. f3 {[%clk 0:03:01]}  e5 {[%clk 0:02:51]} 7. Be3 {[%clk 0:03:02]}  exd4 {[%clk 0:02:50]} 8. Qxd4 {[%clk 0:02:56]}  Nc6 {[%clk 0:02:50]} 9. Qd2 {[%clk 0:02:56]}  Be6 {[%clk 0:02:50]} 10. O-O-O {[%clk 0:02:57]}  Be7 {[%clk 0:02:50]} 11. g4 {[%clk 0:02:58]}  b5 {[%clk 0:02:49]} 12. h4 {[%clk 0:02:58]}  b4 {[%clk 0:02:48]} 13. Na4 {[%clk 0:02:56]}  Nd7 {[%clk 0:02:46]} 14. g5 {[%clk 0:02:54]}  Nc5 {[%clk 0:02:44]} 15. Nxc5 {[%clk 0:02:51]}  dxc5 {[%clk 0:02:45]} 16. Qf2 {[%clk 0:02:51]}  Qa5 {[%clk 0:02:44]} 17. b3 {[%clk 0:02:43]}  Qxa2 {[%clk 0:02:42]} 18. Bd3 {[%clk 0:02:40]}  c4 {[%clk 0:02:38]} 19. bxc4 {[%clk 0:02:28]}  b3 {[%clk 0:02:34]} 20. cxb3 {[%clk 0:02:20]}  Ba3+ {[%clk 0:02:32]} 0-1

[Event "November 21 Early 2023"]
[Site "https://www.chess.com"]
[Date "2023.11.21"]
[Round "11"]
[White "ploxoi"]
[Black "Ambartsumova, Karina"]
[Result "0-1"]
[Board "93"]
[TimeControl "180+1"]
[BlackFideId "4166299"]
[WhiteElo "2434"]
[BlackElo "2240"]
[BlackTeam "RUS"]
[WhiteClock "0:01:41"]
[BlackClock "0:01:25"]

1. d4 {[%clk 0:03:00]}  Nf6 {[%clk 0:02:59]} 2. c4 {[%clk 0:03:00]}  e6 {[%clk 0:03:00]} 3. g3 {[%clk 0:02:59]}  d5 {[%clk 0:03:00]} 4. Nf3 {[%clk 0:02:58]}  dxc4 {[%clk 0:03:00]} 5. Bg2 {[%clk 0:02:57]}  Nc6 {[%clk 0:03:00]} 6. O-O {[%clk 0:02:57]}  Rb8 {[%clk 0:03:00]} 7. Bg5 {[%clk 0:02:57]}  b5 {[%clk 0:02:56]} 8. e3 {[%clk 0:02:55]}  Be7 {[%clk 0:02:55]} 9. a4 {[%clk 0:02:55]}  a6 {[%clk 0:02:54]} 10. Qc1 {[%clk 0:02:55]}  Nb4 {[%clk 0:02:49]} 11. Ne5 {[%clk 0:02:48]}  Bb7 {[%clk 0:02:47]} 12. Bxb7 {[%clk 0:02:28]}  Rxb7 {[%clk 0:02:48]} 13. b3 {[%clk 0:02:29]}  cxb3 {[%clk 0:02:16]} 14. axb5 {[%clk 0:02:28]}  Rxb5 {[%clk 0:02:11]} 15. Nd2 {[%clk 0:02:07]}  O-O {[%clk 0:01:39]} 16. Nxb3 {[%clk 0:02:06]}  Qd5 {[%clk 0:01:38]} 17. Nd2 {[%clk 0:02:00]}  c5 {[%clk 0:01:35]} 18. Nef3 {[%clk 0:01:44]}  cxd4 {[%clk 0:01:27]} 19. Nxd4 {[%clk 0:01:41]}  Qxg5 {[%clk 0:01:25]} 0-1

[Event "November 21 Early 2023"]
[Site "https://www.chess.com"]
[Date "2023.11.21"]
[Round "11"]
[White "Herman, Daniel"]
[Black "Belov, Alexei"]
[Result "0-1"]
[Board "94"]
[TimeControl "180+1"]
[WhiteFideId "30935008"]
[BlackFideId "4128206"]
[WhiteElo "1897"]
[BlackElo "2599"]
[WhiteTeam "USA"]
[BlackTeam "RUS"]
[WhiteClock "0:00:02"]
[BlackClock "0:00:07"]

1. e4 {[%clk 0:03:00]}  e6 {[%clk 0:02:59]} 2. d4 {[%clk 0:02:59]}  d5 {[%clk 0:02:58]} 3. Nc3 {[%clk 0:02:59]}  Nf6 {[%clk 0:02:58]} 4. e5 {[%clk 0:02:58]}  Ne4 {[%clk 0:02:58]} 5. Nxe4 {[%clk 0:02:57]}  dxe4 {[%clk 0:02:59]} 6. Bc4 {[%clk 0:02:57]}  a6 {[%clk 0:02:59]} 7. d5 {[%clk 0:02:53]}  b5 {[%clk 0:02:58]} 8. Bb3 {[%clk 0:02:52]}  Bb7 {[%clk 0:02:58]} 9. dxe6 {[%clk 0:02:41]}  Qxd1+ {[%clk 0:02:57]} 10. Kxd1 {[%clk 0:02:42]}  fxe6 {[%clk 0:02:57]} 11. Ne2 {[%clk 0:02:32]}  Nd7 {[%clk 0:02:37]} 12. Nf4 {[%clk 0:02:23]}  Nxe5 {[%clk 0:01:53]} 13. Nxe6 {[%clk 0:02:20]}  Bd6 {[%clk 0:01:53]} 14. Nxg7+ {[%clk 0:02:17]}  Kd7 {[%clk 0:01:51]} 15. Be6+ {[%clk 0:01:57]}  Ke7 {[%clk 0:01:47]} 16. Bg5+ {[%clk 0:01:56]}  Kf8 {[%clk 0:01:47]} 17. Nf5 {[%clk 0:01:51]}  Bc5 {[%clk 0:01:28]} 18. Bf6 {[%clk 0:01:40]}  Nf7 {[%clk 0:01:14]} 19. Bxh8 {[%clk 0:01:14]}  Nxh8 {[%clk 0:01:14]} 20. Ke2 {[%clk 0:01:05]}  Ng6 {[%clk 0:01:13]} 21. g3 {[%clk 0:01:03]}  Re8 {[%clk 0:01:08]} 22. Bb3 {[%clk 0:01:00]}  e3 {[%clk 0:01:07]} 23. f3 {[%clk 0:00:56]}  Ne5 {[%clk 0:01:07]} 24. Rhf1 {[%clk 0:00:54]}  Bb6 {[%clk 0:01:05]} 25. Rad1 {[%clk 0:00:53]}  Bc8 {[%clk 0:00:53]} 26. Nh4 {[%clk 0:00:35]}  Bh3 {[%clk 0:00:47]} 27. Rfe1 {[%clk 0:00:34]}  c6 {[%clk 0:00:35]} 28. Rd6 {[%clk 0:00:31]}  Bd8 {[%clk 0:00:33]} 29. Red1 {[%clk 0:00:21]}  Bxh4 {[%clk 0:00:30]} 30. gxh4 {[%clk 0:00:22]}  Bg2 {[%clk 0:00:30]} 31. Rf6+ {[%clk 0:00:18]}  Kg7 {[%clk 0:00:30]} 32. Rf5 {[%clk 0:00:17]}  Kg6 {[%clk 0:00:21]} 33. Rxe5 {[%clk 0:00:16]}  Rxe5 {[%clk 0:00:21]} 34. Rg1 {[%clk 0:00:17]}  Kh5 {[%clk 0:00:18]} 35. Rxg2 {[%clk 0:00:17]}  Kxh4 {[%clk 0:00:19]} 36. Rg3 {[%clk 0:00:16]}  c5 {[%clk 0:00:19]} 37. Bf7 {[%clk 0:00:15]}  c4 {[%clk 0:00:19]} 38. c3 {[%clk 0:00:15]}  a5 {[%clk 0:00:19]} 39. f4 {[%clk 0:00:15]}  Rf5 {[%clk 0:00:19]} 40. Be6 {[%clk 0:00:15]}  Rxf4 {[%clk 0:00:19]} 41. Kxe3 {[%clk 0:00:15]}  Rf6 {[%clk 0:00:18]} 42. Bd5 {[%clk 0:00:14]}  h5 {[%clk 0:00:17]} 43. Be4 {[%clk 0:00:13]}  Rd6 {[%clk 0:00:16]} 44. Rf3 {[%clk 0:00:13]}  b4 {[%clk 0:00:16]} 45. Bf5 {[%clk 0:00:11]}  Kg5 {[%clk 0:00:16]} 46. Be4 {[%clk 0:00:10]}  Rd1 {[%clk 0:00:13]} 47. Rf2 {[%clk 0:00:10]}  Re1+ {[%clk 0:00:13]} 48. Kd4 {[%clk 0:00:10]}  b3 {[%clk 0:00:11]} 49. axb3 {[%clk 0:00:09]}  cxb3 {[%clk 0:00:12]} 50. Bd5 {[%clk 0:00:09]}  a4 {[%clk 0:00:11]} 51. Bc6 {[%clk 0:00:09]}  Rg1 {[%clk 0:00:09]} 52. Bxa4 {[%clk 0:00:07]}  Rg4+ {[%clk 0:00:09]} 53. Kc5 {[%clk 0:00:06]}  Rxa4 {[%clk 0:00:09]} 54. c4 {[%clk 0:00:05]}  Kg4 {[%clk 0:00:09]} 55. Kb5 {[%clk 0:00:05]}  Ra1 {[%clk 0:00:09]} 56. c5 {[%clk 0:00:06]}  Rc1 {[%clk 0:00:10]} 57. Re2 {[%clk 0:00:05]}  Rc2 {[%clk 0:00:10]} 58. Re4+ {[%clk 0:00:05]}  Kf3 {[%clk 0:00:10]} 59. Rb4 {[%clk 0:00:05]}  Rxb2 {[%clk 0:00:10]} 60. c6 {[%clk 0:00:06]}  Kg2 {[%clk 0:00:05]} 61. c7 {[%clk 0:00:04]}  Rc2 {[%clk 0:00:05]} 62. Rc4 {[%clk 0:00:04]}  Rxc4 {[%clk 0:00:06]} 63. Kxc4 {[%clk 0:00:05]}  b2 {[%clk 0:00:06]} 64. c8=Q {[%clk 0:00:05]}  b1=Q {[%clk 0:00:07]} 65. Qc6+ {[%clk 0:00:04]}  Kxh2 {[%clk 0:00:07]} 66. Qd6+ {[%clk 0:00:03]}  Kh3 {[%clk 0:00:07]} 67. Qd3+ {[%clk 0:00:02]}  Qxd3+ {[%clk 0:00:06]} 68. Kxd3 {[%clk 0:00:03]}  Kg2 {[%clk 0:00:07]} 69. Ke2 {[%clk 0:00:02]}  h4 {[%clk 0:00:07]} 0-1

[Event "November 21 Early 2023"]
[Site "https://www.chess.com"]
[Date "2023.11.21"]
[Round "11"]
[White "Santos Flores, Alberto"]
[Black "Kubatko, Ivan"]
[Result "1/2-1/2"]
[Board "95"]
[TimeControl "180+1"]
[WhiteFideId "3601234"]
[BlackFideId "24111473"]
[WhiteElo "2235"]
[BlackElo "2285"]
[WhiteTeam "ECU"]
[BlackTeam "RUS"]
[WhiteClock "0:00:15"]
[BlackClock "0:00:04"]

1. e4 {[%clk 0:03:00]}  d5 {[%clk 0:02:48]} 2. exd5 {[%clk 0:03:00]}  Qxd5 {[%clk 0:02:49]} 3. Nf3 {[%clk 0:03:00]}  Nf6 {[%clk 0:02:49]} 4. d4 {[%clk 0:03:01]}  Bg4 {[%clk 0:02:49]} 5. Be2 {[%clk 0:03:01]}  Nc6 {[%clk 0:02:48]} 6. Be3 {[%clk 0:03:01]}  O-O-O {[%clk 0:02:42]} 7. Nbd2 {[%clk 0:03:01]}  Qf5 {[%clk 0:02:28]} 8. c4 {[%clk 0:03:00]}  e5 {[%clk 0:02:08]} 9. d5 {[%clk 0:03:00]}  Nb4 {[%clk 0:01:38]} 10. O-O {[%clk 0:02:59]}  Nc2 {[%clk 0:01:37]} 11. Nh4 {[%clk 0:02:23]}  Bxe2 {[%clk 0:01:31]} 12. Nxf5 {[%clk 0:02:08]}  Bxd1 {[%clk 0:01:31]} 13. Raxd1 {[%clk 0:02:08]}  Nxe3 {[%clk 0:01:18]} 14. fxe3 {[%clk 0:02:08]}  Nd7 {[%clk 0:01:05]} 15. e4 {[%clk 0:02:05]}  g6 {[%clk 0:00:51]} 16. Ng3 {[%clk 0:02:04]}  Bc5+ {[%clk 0:00:50]} 17. Kh1 {[%clk 0:02:04]}  f6 {[%clk 0:00:50]} 18. a3 {[%clk 0:02:03]}  a5 {[%clk 0:00:49]} 19. Rb1 {[%clk 0:01:58]}  a4 {[%clk 0:00:49]} 20. Rbe1 {[%clk 0:01:56]}  Rhf8 {[%clk 0:00:48]} 21. Nb1 {[%clk 0:01:56]}  Bd4 {[%clk 0:00:47]} 22. Re2 {[%clk 0:01:54]}  Nc5 {[%clk 0:00:46]} 23. Rd2 {[%clk 0:01:41]}  f5 {[%clk 0:00:36]} 24. exf5 {[%clk 0:01:40]}  gxf5 {[%clk 0:00:37]} 25. Rxf5 {[%clk 0:01:36]}  Rxf5 {[%clk 0:00:34]} 26. Nxf5 {[%clk 0:01:37]}  Rf8 {[%clk 0:00:33]} 27. g4 {[%clk 0:01:35]}  Ne4 {[%clk 0:00:20]} 28. Re2 {[%clk 0:01:13]}  Nf2+ {[%clk 0:00:20]} 29. Kg2 {[%clk 0:01:13]}  Nxg4 {[%clk 0:00:20]} 30. Nxd4 {[%clk 0:01:14]}  exd4 {[%clk 0:00:21]} 31. Nd2 {[%clk 0:01:02]}  Ne3+ {[%clk 0:00:20]} 32. Kg3 {[%clk 0:01:01]}  Nf5+ {[%clk 0:00:15]} 33. Kf4 {[%clk 0:00:51]}  d3 {[%clk 0:00:12]} 34. Re5 {[%clk 0:00:46]}  Nd6+ {[%clk 0:00:05]} 35. Ke3 {[%clk 0:00:46]}  Rg8 {[%clk 0:00:05]} 36. Kxd3 {[%clk 0:00:41]}  Rg2 {[%clk 0:00:05]} 37. Rh5 {[%clk 0:00:42]}  Nf7 {[%clk 0:00:02]} 38. Rxh7 {[%clk 0:00:40]}  Ne5+ {[%clk 0:00:03]} 39. Kc3 {[%clk 0:00:37]}  Ng4 {[%clk 0:00:02]} 40. h4 {[%clk 0:00:36]}  Rg3+ {[%clk 0:00:02]} 41. Kd4 {[%clk 0:00:34]}  Nf2 {[%clk 0:00:02]} 42. h5 {[%clk 0:00:29]}  Rd3+ {[%clk 0:00:02]} 43. Ke5 {[%clk 0:00:29]}  Rxd2 {[%clk 0:00:03]} 44. h6 {[%clk 0:00:29]}  Ng4+ {[%clk 0:00:01]} 45. Kf5 {[%clk 0:00:28]}  Nxh6+ {[%clk 0:00:02]} 46. Rxh6 {[%clk 0:00:28]}  Rxb2 {[%clk 0:00:03]} 47. Ke5 {[%clk 0:00:17]}  Rb3 {[%clk 0:00:03]} 48. Rh8+ {[%clk 0:00:15]}  Kd7 {[%clk 0:00:03]} 49. Rh7+ {[%clk 0:00:16]}  Kc8 {[%clk 0:00:04]} 50. Rh8+ {[%clk 0:00:14]}  Kd7 {[%clk 0:00:04]} 51. Rh7+ {[%clk 0:00:14]}  Kc8 {[%clk 0:00:04]} 52. Rh8+ {[%clk 0:00:15]} 1/2-1/2

[Event "November 21 Early 2023"]
[Site "https://www.chess.com"]
[Date "2023.11.21"]
[Round "11"]
[White "vinclat"]
[Black "Omariev, Maksim"]
[Result "0-1"]
[Board "97"]
[TimeControl "180+1"]
[BlackFideId "4193423"]
[WhiteElo "2378"]
[BlackElo "2527"]
[BlackTeam "RUS"]
[WhiteClock "0:00:02"]
[BlackClock "0:00:16"]

1. e4 {[%clk 0:03:00]}  c5 {[%clk 0:02:59]} 2. Nf3 {[%clk 0:02:59]}  d6 {[%clk 0:02:59]} 3. d4 {[%clk 0:02:56]}  cxd4 {[%clk 0:03:00]} 4. Nxd4 {[%clk 0:02:57]}  Nf6 {[%clk 0:03:01]} 5. Nc3 {[%clk 0:02:57]}  a6 {[%clk 0:03:01]} 6. h4 {[%clk 0:02:50]}  b5 {[%clk 0:03:00]} 7. Be3 {[%clk 0:02:48]}  Bb7 {[%clk 0:03:00]} 8. f3 {[%clk 0:02:49]}  e5 {[%clk 0:02:53]} 9. Nb3 {[%clk 0:02:46]}  d5 {[%clk 0:02:41]} 10. exd5 {[%clk 0:02:45]}  Nxd5 {[%clk 0:02:42]} 11. Nxd5 {[%clk 0:02:45]}  Bxd5 {[%clk 0:02:28]} 12. Qd2 {[%clk 0:02:43]}  Nc6 {[%clk 0:02:24]} 13. O-O-O {[%clk 0:02:39]}  Be6 {[%clk 0:02:24]} 14. Qxd8+ {[%clk 0:02:30]}  Rxd8 {[%clk 0:02:24]} 15. Rxd8+ {[%clk 0:02:26]}  Kxd8 {[%clk 0:02:24]} 16. Nc5 {[%clk 0:02:27]}  Bxc5 {[%clk 0:02:19]} 17. Bxc5 {[%clk 0:02:28]}  Kc7 {[%clk 0:02:19]} 18. Bd3 {[%clk 0:02:24]}  h5 {[%clk 0:02:15]} 19. Re1 {[%clk 0:02:18]}  Rd8 {[%clk 0:02:13]} 20. b3 {[%clk 0:02:10]}  g6 {[%clk 0:01:59]} 21. Kb2 {[%clk 0:02:04]}  Bf5 {[%clk 0:01:52]} 22. Bxf5 {[%clk 0:01:56]}  gxf5 {[%clk 0:01:53]} 23. Be3 {[%clk 0:01:41]}  f4 {[%clk 0:01:49]} 24. Bc1 {[%clk 0:01:36]}  f6 {[%clk 0:01:44]} 25. c3 {[%clk 0:01:30]}  Rg8 {[%clk 0:00:44]} 26. Re2 {[%clk 0:01:28]}  Kd7 {[%clk 0:00:45]} 27. Kc2 {[%clk 0:01:19]}  Ne7 {[%clk 0:00:45]} 28. Rd2+ {[%clk 0:00:53]}  Ke6 {[%clk 0:00:42]} 29. Ba3 {[%clk 0:00:50]}  Nf5 {[%clk 0:00:42]} 30. Bc5 {[%clk 0:00:45]}  a5 {[%clk 0:00:37]} 31. Bb6 {[%clk 0:00:33]}  a4 {[%clk 0:00:35]} 32. bxa4 {[%clk 0:00:28]}  bxa4 {[%clk 0:00:35]} 33. c4 {[%clk 0:00:29]}  Nxh4 {[%clk 0:00:35]} 34. c5 {[%clk 0:00:09]}  Nxg2 {[%clk 0:00:31]} 35. c6 {[%clk 0:00:09]}  Ne3+ {[%clk 0:00:30]} 36. Kc1 {[%clk 0:00:02]}  Rg1+ {[%clk 0:00:24]} 37. Kb2 {[%clk 0:00:02]}  Nc4+ {[%clk 0:00:25]} 38. Kc3 {[%clk 0:00:03]}  Nxd2 {[%clk 0:00:20]} 39. Bxg1 {[%clk 0:00:02]}  Nxf3 {[%clk 0:00:21]} 40. Bc5 {[%clk 0:00:02]}  h4 {[%clk 0:00:15]} 41. Kb4 {[%clk 0:00:01]}  h3 {[%clk 0:00:16]} 42. Kb5 {[%clk 0:00:01]}  h2 {[%clk 0:00:17]} 43. Kb6 {[%clk 0:00:02]}  h1=Q {[%clk 0:00:17]} 44. c7 {[%clk 0:00:03]}  Kd7 {[%clk 0:00:16]} 45. Kb7 {[%clk 0:00:02]}  Nd4+ {[%clk 0:00:16]} 0-1

[Event "November 21 Early 2023"]
[Site "https://www.chess.com"]
[Date "2023.11.21"]
[Round "11"]
[White "Lund, Gunnar"]
[Black "Sharafiev, Azat"]
[Result "1-0"]
[Board "99"]
[TimeControl "180+1"]
[WhiteFideId "1520814"]
[BlackFideId "4186214"]
[WhiteElo "2233"]
[BlackElo "2306"]
[WhiteTeam "NOR"]
[BlackTeam "RUS"]
[WhiteClock "0:00:31"]
[BlackClock "0:00:05"]

1. h3 {[%clk 0:02:38]}  d5 {[%clk 0:02:58]} 2. a3 {[%clk 0:02:39]}  e5 {[%clk 0:02:58]} 3. d3 {[%clk 0:02:40]}  g6 {[%clk 0:02:57]} 4. e3 {[%clk 0:02:41]}  Bg7 {[%clk 0:02:57]} 5. Nc3 {[%clk 0:02:42]}  Ne7 {[%clk 0:02:58]} 6. Bd2 {[%clk 0:02:42]}  O-O {[%clk 0:02:58]} 7. e4 {[%clk 0:02:43]}  c6 {[%clk 0:02:57]} 8. Qc1 {[%clk 0:02:41]}  f5 {[%clk 0:02:57]} 9. Bh6 {[%clk 0:02:41]}  Be6 {[%clk 0:02:57]} 10. h4 {[%clk 0:02:38]}  fxe4 {[%clk 0:02:52]} 11. dxe4 {[%clk 0:02:05]}  d4 {[%clk 0:02:50]} 12. Nce2 {[%clk 0:02:03]}  Nd7 {[%clk 0:02:45]} 13. Ng3 {[%clk 0:02:01]}  Nf6 {[%clk 0:02:39]} 14. Bxg7 {[%clk 0:01:56]}  Kxg7 {[%clk 0:02:38]} 15. h5 {[%clk 0:01:56]}  Qa5+ {[%clk 0:02:25]} 16. b4 {[%clk 0:01:54]}  Qc7 {[%clk 0:02:20]} 17. Nf3 {[%clk 0:01:48]}  Rae8 {[%clk 0:01:52]} 18. Qg5 {[%clk 0:01:20]}  h6 {[%clk 0:01:44]} 19. Qxe5 {[%clk 0:01:20]}  Qxe5 {[%clk 0:01:44]} 20. Nxe5 {[%clk 0:01:21]}  g5 {[%clk 0:01:28]} 21. Bd3 {[%clk 0:01:17]}  Nd7 {[%clk 0:01:23]} 22. Nf3 {[%clk 0:01:11]}  Ng8 {[%clk 0:01:21]} 23. Nxd4 {[%clk 0:01:10]}  Ngf6 {[%clk 0:01:19]} 24. O-O-O {[%clk 0:01:08]}  Ne5 {[%clk 0:01:17]} 25. Ndf5+ {[%clk 0:01:05]}  Kh7 {[%clk 0:01:11]} 26. f3 {[%clk 0:01:05]}  b6 {[%clk 0:00:50]} 27. Be2 {[%clk 0:01:04]}  c5 {[%clk 0:00:47]} 28. bxc5 {[%clk 0:01:04]}  bxc5 {[%clk 0:00:48]} 29. Rd6 {[%clk 0:01:04]}  Rf7 {[%clk 0:00:34]} 30. Bb5 {[%clk 0:01:02]}  Nfd7 {[%clk 0:00:29]} 31. Rhd1 {[%clk 0:01:00]}  Rb8 {[%clk 0:00:09]} 32. Bxd7 {[%clk 0:00:58]}  Bxd7 {[%clk 0:00:09]} 33. Rxh6+ {[%clk 0:00:57]}  Kg8 {[%clk 0:00:09]} 34. Rhd6 {[%clk 0:00:53]}  Ba4 {[%clk 0:00:08]} 35. Nh6+ {[%clk 0:00:52]}  Kg7 {[%clk 0:00:08]} 36. Nxf7 {[%clk 0:00:52]}  Kxf7 {[%clk 0:00:09]} 37. R6d5 {[%clk 0:00:50]}  Nc4 {[%clk 0:00:09]} 38. Rxc5 {[%clk 0:00:50]}  Nxa3 {[%clk 0:00:08]} 39. Rd6 {[%clk 0:00:37]}  Ke7 {[%clk 0:00:08]} 40. Nf5+ {[%clk 0:00:36]}  Ke8 {[%clk 0:00:07]} 41. h6 {[%clk 0:00:36]}  Rb1+ {[%clk 0:00:07]} 42. Kd2 {[%clk 0:00:36]}  Rg1 {[%clk 0:00:06]} 43. h7 {[%clk 0:00:35]}  Rxg2+ {[%clk 0:00:06]} 44. Ke3 {[%clk 0:00:35]}  Rh2 {[%clk 0:00:05]} 45. Rc8+ {[%clk 0:00:33]}  Kf7 {[%clk 0:00:05]} 46. Rc7+ {[%clk 0:00:33]}  Ke8 {[%clk 0:00:05]} 47. Ng7+ {[%clk 0:00:30]}  Kf8 {[%clk 0:00:06]} 48. Ne6+ {[%clk 0:00:31]}  Ke8 {[%clk 0:00:05]} 49. Rd8# {[%clk 0:00:31]} 1-0

[Event "November 21 Early 2023"]
[Site "https://www.chess.com"]
[Date "2023.11.21"]
[Round "11"]
[White "Grossboss19"]
[Black "Koridze, Lile"]
[Result "1/2-1/2"]
[Board "100"]
[TimeControl "180+1"]
[BlackFideId "13612514"]
[WhiteElo "2509"]
[BlackElo "2061"]
[BlackTeam "GEO"]
[WhiteClock "0:00:20"]
[BlackClock "0:00:04"]

1. e4 {[%clk 0:03:00]}  c5 {[%clk 0:02:59]} 2. Nc3 {[%clk 0:02:55]}  d6 {[%clk 0:02:58]} 3. Nf3 {[%clk 0:02:54]}  Nf6 {[%clk 0:02:57]} 4. d4 {[%clk 0:02:54]}  cxd4 {[%clk 0:02:58]} 5. Nxd4 {[%clk 0:02:55]}  a6 {[%clk 0:02:59]} 6. f3 {[%clk 0:02:52]}  e5 {[%clk 0:02:58]} 7. Nde2 {[%clk 0:02:51]}  Be6 {[%clk 0:02:58]} 8. Be3 {[%clk 0:02:51]}  d5 {[%clk 0:02:33]} 9. exd5 {[%clk 0:02:48]}  Nxd5 {[%clk 0:02:33]} 10. Nxd5 {[%clk 0:02:39]}  Bxd5 {[%clk 0:02:33]} 11. Nc3 {[%clk 0:02:39]}  Bb4 {[%clk 0:02:33]} 12. Qd2 {[%clk 0:02:29]}  Nc6 {[%clk 0:02:19]} 13. O-O-O {[%clk 0:02:24]}  Be6 {[%clk 0:02:05]} 14. Qxd8+ {[%clk 0:02:17]}  Rxd8 {[%clk 0:02:05]} 15. Rxd8+ {[%clk 0:02:18]}  Kxd8 {[%clk 0:02:05]} 16. a3 {[%clk 0:02:18]}  Bxc3 {[%clk 0:01:44]} 17. bxc3 {[%clk 0:02:18]}  Kc7 {[%clk 0:01:44]} 18. Be2 {[%clk 0:02:15]}  Rd8 {[%clk 0:01:43]} 19. h4 {[%clk 0:02:12]}  Na5 {[%clk 0:01:36]} 20. Rd1 {[%clk 0:02:03]}  Rxd1+ {[%clk 0:01:31]} 21. Kxd1 {[%clk 0:01:58]}  Bc4 {[%clk 0:01:29]} 22. Bd3 {[%clk 0:01:54]}  g6 {[%clk 0:01:25]} 23. Bc5 {[%clk 0:01:23]}  Bxd3 {[%clk 0:01:06]} 24. cxd3 {[%clk 0:01:24]}  f5 {[%clk 0:00:57]} 25. Bb4 {[%clk 0:01:20]}  Nc6 {[%clk 0:00:55]} 26. Bf8 {[%clk 0:01:20]}  Kd7 {[%clk 0:00:53]} 27. Ke2 {[%clk 0:01:14]}  Ke6 {[%clk 0:00:53]} 28. g3 {[%clk 0:01:13]}  b5 {[%clk 0:00:53]} 29. Bc5 {[%clk 0:01:06]}  Kd5 {[%clk 0:00:52]} 30. Bb6 {[%clk 0:01:06]}  e4 {[%clk 0:00:42]} 31. Bc7 {[%clk 0:01:02]}  exd3+ {[%clk 0:00:26]} 32. Kxd3 {[%clk 0:01:02]}  Ne7 {[%clk 0:00:21]} 33. Bd8 {[%clk 0:00:57]}  Nc6 {[%clk 0:00:21]} 34. Bc7 {[%clk 0:00:55]}  Ne7 {[%clk 0:00:19]} 35. g4 {[%clk 0:00:49]}  fxg4 {[%clk 0:00:17]} 36. fxg4 {[%clk 0:00:50]}  h5 {[%clk 0:00:17]} 37. gxh5 {[%clk 0:00:48]}  gxh5 {[%clk 0:00:17]} 38. Bd8 {[%clk 0:00:48]}  Nf5 {[%clk 0:00:16]} 39. Bf6 {[%clk 0:00:47]}  Nd6 {[%clk 0:00:13]} 40. Be7 {[%clk 0:00:40]}  Nc4 {[%clk 0:00:11]} 41. Bb4 {[%clk 0:00:33]}  a5 {[%clk 0:00:04]} 42. Be7 {[%clk 0:00:31]}  Ke6 {[%clk 0:00:05]} 43. Bd8 {[%clk 0:00:30]}  Kd5 {[%clk 0:00:04]} 44. Bc7 {[%clk 0:00:26]}  Nxa3 {[%clk 0:00:04]} 45. Bxa5 {[%clk 0:00:26]}  Nc4 {[%clk 0:00:05]} 46. Bd8 {[%clk 0:00:26]}  Nd6 {[%clk 0:00:04]} 47. Ke3 {[%clk 0:00:25]}  Kc4 {[%clk 0:00:03]} 48. Bf6 {[%clk 0:00:19]}  Nf5+ {[%clk 0:00:03]} 49. Kf4 {[%clk 0:00:19]}  Nxh4 {[%clk 0:00:03]} 50. Bxh4 {[%clk 0:00:18]}  Kxc3 {[%clk 0:00:03]} 51. Kg5 {[%clk 0:00:18]}  b4 {[%clk 0:00:03]} 52. Kxh5 {[%clk 0:00:19]}  b3 {[%clk 0:00:04]} 53. Bf6+ {[%clk 0:00:20]}  Kc2 {[%clk 0:00:04]} 54. Bg7 {[%clk 0:00:20]}  b2 {[%clk 0:00:04]} 55. Bxb2 {[%clk 0:00:20]} 1/2-1/2

[Event "November 21 Early 2023"]
[Site "https://www.chess.com"]
[Date "2023.11.21"]
[Round "11"]
[White "Zivic, Dragan"]
[Black "UNSTOPPABLE_LEGEND"]
[Result "0-1"]
[Board "101"]
[TimeControl "180+1"]
[WhiteFideId "904740"]
[WhiteElo "2073"]
[BlackElo "2503"]
[WhiteTeam "SRB"]
[WhiteClock "0:00:54"]
[BlackClock "0:00:15"]

1. c4 {[%clk 0:02:57]}  g6 {[%clk 0:02:58]} 2. Nc3 {[%clk 0:02:57]}  Bg7 {[%clk 0:02:58]} 3. d4 {[%clk 0:02:54]}  Nf6 {[%clk 0:02:58]} 4. e4 {[%clk 0:02:53]}  d6 {[%clk 0:02:58]} 5. h3 {[%clk 0:02:52]}  O-O {[%clk 0:02:58]} 6. Bg5 {[%clk 0:02:42]}  c5 {[%clk 0:02:56]} 7. d5 {[%clk 0:02:40]}  e6 {[%clk 0:02:49]} 8. Nf3 {[%clk 0:02:41]}  exd5 {[%clk 0:02:48]} 9. exd5 {[%clk 0:02:40]}  Qb6 {[%clk 0:02:43]} 10. Qd2 {[%clk 0:02:35]}  Bf5 {[%clk 0:02:40]} 11. Be2 {[%clk 0:02:31]}  Ne4 {[%clk 0:02:36]} 12. Nxe4 {[%clk 0:02:29]}  Bxe4 {[%clk 0:02:37]} 13. O-O {[%clk 0:02:26]}  Qxb2 {[%clk 0:02:34]} 14. Rae1 {[%clk 0:02:17]}  Re8 {[%clk 0:02:10]} 15. Qxb2 {[%clk 0:02:09]}  Bxb2 {[%clk 0:02:09]} 16. Bd3 {[%clk 0:02:08]}  f5 {[%clk 0:02:08]} 17. Bxe4 {[%clk 0:02:01]}  fxe4 {[%clk 0:02:07]} 18. Nd2 {[%clk 0:02:00]}  Bc3 {[%clk 0:01:04]} 19. Rxe4 {[%clk 0:01:58]}  Nd7 {[%clk 0:01:02]} 20. Rfe1 {[%clk 0:01:53]}  Kf7 {[%clk 0:00:51]} 21. Rxe8 {[%clk 0:01:50]}  Rxe8 {[%clk 0:00:51]} 22. Rxe8 {[%clk 0:01:51]}  Kxe8 {[%clk 0:00:51]} 23. Ne4 {[%clk 0:01:52]}  Be5 {[%clk 0:00:49]} 24. f4 {[%clk 0:01:51]}  Bd4+ {[%clk 0:00:49]} 25. Kf1 {[%clk 0:01:50]}  Nb6 {[%clk 0:00:48]} 26. Nxd6+ {[%clk 0:01:46]}  Kd7 {[%clk 0:00:49]} 27. Nxb7 {[%clk 0:01:36]}  Nxc4 {[%clk 0:00:49]} 28. Ke2 {[%clk 0:01:27]}  Ne3 {[%clk 0:00:48]} 29. g4 {[%clk 0:01:24]}  Nxd5 {[%clk 0:00:47]} 30. Kd3 {[%clk 0:01:19]}  Nb6 {[%clk 0:00:14]} 31. f5 {[%clk 0:01:14]}  gxf5 {[%clk 0:00:15]} 32. gxf5 {[%clk 0:01:14]}  Bg1 {[%clk 0:00:15]} 33. Na5 {[%clk 0:01:13]}  Kd6 {[%clk 0:00:14]} 34. Nc4+ {[%clk 0:01:13]}  Nxc4 {[%clk 0:00:15]} 35. Kxc4 {[%clk 0:01:13]}  Ke5 {[%clk 0:00:16]} 36. f6 {[%clk 0:01:11]}  Ke6 {[%clk 0:00:16]} 37. h4 {[%clk 0:01:08]}  h5 {[%clk 0:00:16]} 38. a4 {[%clk 0:01:07]}  Bd4 {[%clk 0:00:16]} 39. Kb5 {[%clk 0:01:00]}  Bxf6 {[%clk 0:00:09]} 40. Bxf6 {[%clk 0:00:48]}  Kxf6 {[%clk 0:00:10]} 41. Kxc5 {[%clk 0:00:49]}  Kf5 {[%clk 0:00:11]} 42. Kd5 {[%clk 0:00:49]}  Kg4 {[%clk 0:00:11]} 43. Ke4 {[%clk 0:00:50]}  a5 {[%clk 0:00:10]} 44. Ke3 {[%clk 0:00:47]}  Kxh4 {[%clk 0:00:11]} 45. Kf4 {[%clk 0:00:48]}  Kh3 {[%clk 0:00:11]} 46. Kf3 {[%clk 0:00:48]}  h4 {[%clk 0:00:11]} 47. Kf2 {[%clk 0:00:48]}  Kh2 {[%clk 0:00:11]} 48. Kf1 {[%clk 0:00:47]}  Kg3 {[%clk 0:00:11]} 49. Kg1 {[%clk 0:00:47]}  Kf3 {[%clk 0:00:12]} 50. Kh2 {[%clk 0:00:48]}  Ke3 {[%clk 0:00:13]} 51. Kh3 {[%clk 0:00:49]}  Kd3 {[%clk 0:00:13]} 52. Kxh4 {[%clk 0:00:50]}  Kc3 {[%clk 0:00:14]} 53. Kg3 {[%clk 0:00:51]}  Kb3 {[%clk 0:00:15]} 54. Kf3 {[%clk 0:00:52]}  Kxa4 {[%clk 0:00:15]} 55. Ke3 {[%clk 0:00:53]}  Kb3 {[%clk 0:00:15]} 56. Kd3 {[%clk 0:00:53]}  a4 {[%clk 0:00:15]} 57. Kd2 {[%clk 0:00:54]}  Kb2 {[%clk 0:00:15]} 0-1